bitfinex/quotes_ETHUSD_20240621
["timestamp","ask_amount","ask_price","bid_price","bid_amount"]
[1718948700689,0.49261638,3516.7,3516.0,3.61388]
[1718948700891,0.49261638,3516.8,3516.0,3.61388]
[1718948701124,0.49261638,3516.7,3516.0,3.61388]
[1718948701305,0.49262316,3516.8,3516.0,3.61388]
[1718948701831,0.49262372,3516.7,3516.0,3.61388]
[1718948701990,0.49262372,3516.8,3516.0,3.61388]
[1718948702191,1.44147348,3516.7,3516.0,3.0]
[1718948702395,1.44147348,3516.7,3516.1,3.0]
[1718948702396,0.49264173,3516.6,3516.1,3.0]
[1718948702636,2.87944173,3516.5,3515.9,2.2628]
[1718948702848,0.49264173,3516.4,3515.9,2.2628]
[1718948703328,0.07278141,3516.3,3515.9,2.2628]
[1718948705369,0.07278141,3516.3,3515.9,3.39472]
[1718948705659,0.07278141,3516.3,3516.0,3.0]
[1718948708963,0.07278141,3516.3,3515.9,1.13192]
[1718948709129,0.07278141,3516.3,3515.7,5.3271]
[1718948709756,0.49266425,3516.4,3515.7,5.3271]
[1718948709960,1.36866425,3516.4,3515.7,5.3271]
[1718948710131,0.56530209,3516.3,3515.7,5.3271]
[1718948710332,0.07263784,3516.3,3515.7,5.3271]
[1718948710531,0.49273184,3516.2,3515.7,5.3271]
[1718948710731,0.49273184,3516.2,3515.7,3.0]
[1718948710937,0.49273184,3516.3,3515.7,3.0]
[1718948711165,0.07263784,3516.1,3515.7,3.0]
[1718948711677,0.49273701,3516.3,3515.7,3.0]
[1718948711876,0.07263784,3516.2,3515.8,2.4861]
[1718948712177,0.49273701,3516.6,3515.9,1.15425]
[1718948712377,0.07250868,3516.1,3515.9,3.0]
[1718948712536,0.55,3516.5,3515.8,5.4861]
[1718948712953,0.07250868,3516.4,3515.8,5.4861]
[1718948714938,0.07250868,3516.4,3516.1,0.876]
[1718948715136,0.49268106,3516.8,3516.2,2.43437237]
[1718948715337,0.07250868,3516.3,3516.2,2.3775]
[1718948715685,0.07250868,3516.3,3516.2,5.3775]
[1718948715971,0.876,3517.0,3516.2,5.3775]
[1718948716481,1.36859755,3517.0,3516.2,5.3775]
[1718948716648,0.0725125,3516.9,3516.2,2.3775]
[1718948716840,0.0725125,3516.9,3516.2,3.00285]
[1718948717155,0.0725125,3516.9,3516.3,3.0]
[1718948717350,2.3295,3516.8,3516.3,3.0]
[1718948717550,0.49259755,3516.7,3516.0,3.0]
[1718948717755,0.49259755,3516.7,3516.0,3.62535]
[1718948717956,0.0725125,3516.6,3516.0,3.62535]
[1718948719680,0.49262818,3516.7,3516.0,3.0]
[1718948719859,2.3295,3516.4,3515.7,5.3775]
[1718948720046,0.56523838,3516.3,3515.7,5.3775]
[1718948720249,0.4926765,3516.3,3515.8,1.14339]
[1718948720446,0.4926765,3516.3,3515.8,4.14339]
[1718948720650,0.49268518,3516.3,3515.8,4.14339]
[1718948722808,2.3295,3516.4,3515.8,4.14339]
[1718948722990,0.49266616,3516.3,3515.8,4.14339]
[1718948723189,0.56533437,3516.3,3515.8,4.14339]
[1718948723377,0.49266616,3516.3,3515.8,4.14339]
[1718948723993,0.49266616,3516.3,3515.9,0.42999045]
[1718948725593,2.3295,3516.4,3515.9,0.42999045]
[1718948725796,0.49265628,3516.3,3515.9,0.42999045]
[1718948725969,0.56513841,3516.3,3515.9,0.42999045]
[1718948726162,0.49265628,3516.3,3515.9,0.42999045]
[1718948728699,2.3295,3516.4,3515.9,0.42999045]
[1718948728863,0.4926558,3516.3,3515.9,0.42999045]
[1718948729212,2.3295,3516.4,3515.9,0.42999045]
[1718948729378,0.49265805,3516.3,3515.9,0.45644696]
[1718948729965,0.49265403,3516.3,3515.9,0.45644696]
[1718948731397,0.49265403,3516.3,3515.9,0.02645651]
[1718948731897,2.3295,3516.4,3515.8,0.02645651]
[1718948732076,0.49265577,3516.3,3515.8,0.02645651]
[1718948735016,2.3295,3516.4,3515.8,0.02645651]
[1718948735188,0.49267252,3516.3,3515.8,0.02645651]
[1718948735387,0.56523061,3516.3,3515.8,1.17238216]
[1718948735614,0.49267252,3516.3,3515.8,4.17238216]
[1718948736126,0.49267252,3516.3,3515.9,3.0]
[1718948736408,0.49267252,3516.3,3516.0,0.026455]
[1718948736725,0.07255809,3516.2,3516.0,0.026455]
[1718948736891,0.49267252,3516.6,3516.0,0.4539098]
[1718948737093,0.07255809,3516.5,3516.0,3.4539098]
[1718948738215,0.07255809,3516.5,3516.0,4.3299098]
[1718948739519,0.07255809,3516.5,3516.4,0.876]
[1718948739720,0.07255809,3516.5,3516.4,3.2375]
[1718948740029,0.49262876,3517.3,3516.4,6.2375]
[1718948740176,0.49262876,3517.3,3516.5,3.0]
[1718948740372,0.07264922,3517.2,3516.5,3.0]
[1718948740680,0.49262876,3517.3,3516.5,3.0]
[1718948740907,0.07265682,3517.2,3516.5,3.0]
[1718948741221,0.49262876,3517.3,3516.5,3.0]
[1718948741222,0.49255868,3517.3,3516.5,3.0]
[1718948741605,0.07265682,3517.2,3516.5,3.0]
[1718948742889,2.4001,3517.1,3516.5,3.0]
[1718948743090,0.49255868,3517.0,3516.3,3.0]
[1718948743291,0.07278213,3516.9,3516.3,3.0]
[1718948743609,0.49255868,3517.0,3516.3,3.0]
[1718948743999,0.07278213,3516.9,3516.3,3.0]
[1718948744403,0.49259569,3517.0,3516.3,3.0]
[1718948744831,0.07278213,3516.9,3516.3,3.0]
[1718948745199,0.49258949,3517.0,3516.3,3.0]
[1718948745402,0.86945844,3517.0,3516.3,3.0]
[1718948745621,0.07278213,3516.9,3516.3,3.0]
[1718948746014,0.86945844,3517.0,3516.3,3.0]
[1718948746289,0.07272517,3516.9,3516.3,3.0]
[1718948746601,0.86945844,3517.0,3516.3,3.0]
[1718948747128,0.07272517,3516.9,3516.3,3.0]
[1718948747353,0.42182836,3516.9,3516.3,3.0]
[1718948747493,0.62272517,3516.8,3516.3,3.0]
[1718948747695,1.49872517,3516.8,3516.3,3.0]
[1718948748005,1.99135885,3516.8,3516.3,3.0]
[1718948748208,0.49263368,3516.7,3516.3,3.0]
[1718948748606,0.07273277,3516.6,3516.3,3.0]
[1718948748810,0.49263368,3516.7,3516.3,3.0]
[1718948749018,0.92422705,3516.7,3516.3,3.0]
[1718948749233,0.07273277,3516.6,3516.3,3.0]
[1718948749902,0.07273277,3516.6,3516.0,0.876]
[1718948750102,1.04265467,3516.8,3516.1,2.2861]
[1718948750334,0.07260366,3516.7,3516.1,5.2861]
[1718948750755,1.04261483,3516.8,3516.1,5.2861]
[1718948751045,0.07260366,3516.6,3516.1,3.0]
[1718948751225,1.04261483,3516.8,3516.0,0.876]
[1718948751949,0.07264164,3516.7,3516.0,0.876]
[1718948752955,0.07264164,3516.7,3516.1,2.3664]
[1718948753102,0.07264164,3516.7,3516.1,5.3664]
[1718948757946,2.2812,3516.6,3516.1,3.0]
[1718948758163,0.49260881,3516.5,3515.9,3.0]
[1718948758456,0.49260881,3516.5,3515.9,4.13333]
[1718948758834,0.49260881,3516.5,3515.9,5.00933]
[1718948759730,0.49266514,3516.5,3515.9,5.00933]
[1718948762135,2.2812,3516.6,3515.9,5.00933]
[1718948762335,0.49266472,3516.5,3515.9,5.00933]
[1718948764263,0.49266472,3516.5,3516.0,0.44005045]
[1718948765224,0.49263097,3516.5,3516.0,0.44005045]
[1718948765423,3.0013,3516.8,3516.0,2.82335045]
[1718948765739,3.0013,3516.8,3516.1,3.0]
[1718948765740,0.5652167,3516.7,3516.1,3.0]
[1718948768270,0.56519891,3516.7,3516.1,3.0]
[1718948768564,0.56519429,3516.7,3516.2,0.66993505]
[1718948770160,0.56519429,3516.7,3516.1,3.0]
[1718948770573,0.49259442,3516.7,3516.0,2.3833]
[1718948771367,0.49265005,3516.7,3515.9,3.0]
[1718948771544,0.49265005,3516.7,3516.1,2.2669]
[1718948771782,0.49265005,3516.7,3516.2,0.61429]
[1718948771985,0.07272517,3516.6,3516.2,3.61429]
[1718948772309,0.49265005,3516.7,3516.2,3.61429]
[1718948772810,0.07272517,3516.6,3516.2,3.61429]
[1718948773018,0.49265005,3516.7,3516.2,3.61429]
[1718948773214,0.07272517,3516.5,3516.2,3.61429]
[1718948773415,0.49265005,3516.7,3516.2,3.61429]
[1718948773416,0.49265005,3516.7,3516.3,0.675719]
[1718948773617,2.2615,3517.2,3516.5,2.4422]
[1718948773913,0.0726948,3516.6,3516.5,5.4422]
[1718948774073,0.49265005,3517.1,3516.5,5.4422]
[1718948774274,2.2615,3517.2,3516.5,5.4422]
[1718948774473,0.0726948,3517.0,3516.5,5.4422]
[1718948774674,2.2615,3517.2,3516.5,6.07402]
[1718948774978,0.49255555,3517.1,3516.5,6.07402]
[1718948775185,0.56530352,3517.1,3516.5,6.07402]
[1718948775502,0.56530583,3517.1,3516.5,6.07402]
[1718948775801,0.56530583,3517.1,3516.5,3.0]
[1718948776008,0.56530583,3517.1,3516.4,0.876]
[1718948776800,0.56530583,3517.1,3516.6,0.876]
[1718948776999,0.56530583,3517.1,3516.6,3.2305]
[1718948777185,0.56530583,3517.1,3516.7,3.0]
[1718948777386,0.07274797,3517.1,3516.7,3.0]
[1718948777597,0.49253167,3517.1,3516.7,3.0]
[1718948777929,0.07289228,3517.0,3516.7,3.0]
[1718948778507,0.07289228,3517.0,3516.5,0.876]
[1718948778869,0.49253167,3517.3,3516.5,0.876]
[1718948779105,0.07289228,3516.9,3516.5,0.876]
[1718948779272,0.49253167,3517.3,3516.5,0.876]
[1718948779475,0.49253167,3517.3,3516.4,3.0]
[1718948779476,0.85814484,3517.3,3516.4,3.0]
[1718948779670,0.07294544,3517.2,3516.4,0.876]
[1718948779892,0.07294544,3517.2,3516.4,3.876]
[1718948780315,0.07294544,3517.2,3516.8,0.876]
[1718948780485,0.07294544,3517.2,3517.1,0.876]
[1718948780811,0.49251749,3517.6,3517.1,1.0512]
[1718948780978,0.07291506,3517.2,3517.1,0.876]
[1718948781320,0.49251749,3517.6,3517.1,0.876]
[1718948781478,0.07291506,3517.2,3516.9,3.0]
[1718948781679,0.49251749,3517.6,3517.1,0.876]
[1718948781982,0.49251749,3517.6,3517.0,0.54513]
[1718948782187,0.49251749,3517.6,3517.0,0.876]
[1718948783676,0.49249064,3517.6,3517.0,0.876]
[1718948784082,0.4924861,3517.6,3517.0,0.876]
[1718948784321,0.4924861,3517.6,3517.4,0.876]
[1718948784497,0.4924861,3517.6,3517.2,0.876]
[1718948784700,0.4924532,3517.8,3517.2,0.876]
[1718948784900,0.4924532,3517.8,3517.2,1.2636]
[1718948785273,0.4924532,3517.8,3517.2,0.3876]
[1718948785603,0.4924532,3517.8,3517.2,1.2636]
[1718948786578,2.2772,3517.9,3517.2,1.2636]
[1718948786789,0.49244938,3517.8,3517.2,1.2636]
[1718948787845,0.49244938,3517.8,3517.2,0.3876]
[1718948788628,0.49244938,3517.8,3516.9,3.0]
[1718948788837,0.49244938,3517.8,3516.9,0.876]
[1718948789139,2.475,3517.6,3516.9,3.0]
[1718948789295,2.475,3517.6,3516.7,3.876]
[1718948789296,0.49244938,3517.5,3516.7,3.876]
[1718948789496,0.49244938,3517.5,3516.7,5.01558]
[1718948789744,2.475,3517.6,3516.7,5.01558]
[1718948789905,0.49252607,3517.5,3516.7,5.01558]
[1718948791044,0.49252607,3517.5,3516.7,4.13958]
[1718948791045,2.3119,3517.4,3516.7,4.13958]
[1718948791189,0.49254003,3517.3,3516.7,3.0]
[1718948792793,3.1879,3517.4,3516.7,3.0]
[1718948792999,0.07311248,3517.2,3516.7,3.0]
[1718948793297,0.49256459,3517.3,3516.7,3.0]
[1718948793635,0.07311248,3517.2,3516.7,3.0]
[1718948793794,0.49256459,3517.3,3516.7,3.0]
[1718948793997,0.07311248,3517.1,3516.7,3.0]
[1718948794196,0.49256459,3517.3,3516.7,3.0]
[1718948794402,0.49256459,3517.3,3516.4,0.876]
[1718948794403,0.07311248,3517.0,3516.4,3.876]
[1718948794729,0.49256459,3517.3,3516.4,3.876]
[1718948795146,0.07311248,3517.2,3516.4,3.0]
[1718948795427,0.07311248,3517.2,3516.2,7.5638]
[1718948795428,2.4532,3516.8,3516.2,5.1804]
[1718948795640,0.82548459,3516.7,3516.2,5.1804]
[1718948795802,0.8984604,3516.7,3516.2,5.1804]
[1718948796005,0.89855712,3516.7,3516.2,5.1804]
[1718948797162,0.89855712,3516.7,3516.3,3.0]
[1718948797364,0.82558131,3516.7,3516.3,3.0]
[1718948798144,0.49266131,3516.7,3516.3,3.0]
[1718948798702,0.07278974,3516.6,3516.3,3.0]
[1718948799109,0.49267387,3516.7,3516.3,3.0]
[1718948799355,0.07278974,3516.6,3516.3,3.0]
[1718948800531,0.07278974,3516.6,3515.9,3.876]
[1718948802327,0.49266444,3516.7,3515.9,3.876]
[1718948802655,0.07278594,3516.6,3515.9,3.876]
[1718948804418,0.876,3516.5,3515.9,3.0]
[1718948804621,2.357,3516.4,3515.9,3.0]
[1718948804821,0.49267243,3516.3,3515.9,3.0]
[1718948805250,0.07279354,3516.2,3515.9,3.0]
[1718948805617,0.49268712,3516.3,3515.9,3.0]
[1718948805817,0.07254669,3516.1,3515.9,3.0]
[1718948806017,0.49268712,3516.3,3515.9,3.0]
[1718948806518,0.07254669,3516.2,3515.6,0.876]
[1718948806739,0.07254669,3516.2,3515.6,2.01325]
[1718948806953,0.49268712,3516.3,3515.6,2.01325]
[1718948808047,0.49268712,3516.3,3515.7,0.05677731]
[1718948808243,0.49270647,3516.3,3515.7,0.05677731]
[1718948810744,0.49270647,3516.3,3515.8,0.876]
[1718948810933,0.49270647,3516.3,3515.8,0.93277569]
[1718948811137,0.49270647,3516.3,3515.8,0.876]
[1718948811817,2.357,3516.4,3515.8,0.876]
[1718948812020,0.07254669,3516.2,3515.8,0.876]
[1718948812321,2.357,3516.4,3515.8,0.876]
[1718948812520,0.07254669,3516.3,3515.8,0.876]
[1718948812717,2.357,3516.4,3515.8,0.93277416]
[1718948812921,0.07254669,3516.3,3515.8,0.93277416]
[1718948813125,2.357,3516.4,3515.8,0.876]
[1718948813321,0.07254669,3516.3,3515.8,0.876]
[1718948813551,2.357,3516.4,3515.8,0.876]
[1718948813855,0.07254669,3516.3,3515.8,0.876]
[1718948814061,2.357,3516.4,3515.8,0.93281957]
[1718948814234,0.07254669,3516.2,3515.8,0.93281957]
[1718948814420,2.357,3516.4,3515.8,3.93281957]
[1718948814626,0.07254669,3516.1,3515.8,3.93281957]
[1718948814826,0.49267233,3516.3,3515.8,4.36895002]
[1718948815048,0.49267233,3516.3,3515.8,3.93281957]
[1718948815466,2.357,3516.4,3515.8,3.93281957]
[1718948815650,0.07249349,3516.2,3515.8,3.93281957]
[1718948815849,2.357,3516.4,3515.8,3.93281957]
[1718948816058,0.07249349,3516.1,3515.8,3.93281957]
[1718948816233,2.357,3516.4,3515.8,4.56336153]
[1718948816443,0.07249349,3516.0,3515.8,3.93281957]
[1718948816626,2.357,3516.4,3515.8,3.93281957]
[1718948816827,0.07249349,3515.9,3515.8,3.93281957]
[1718948817028,2.357,3516.4,3515.8,3.93281957]
[1718948817261,0.07249349,3515.9,3515.8,3.93281957]
[1718948817433,0.876,3516.7,3515.8,4.56336153]
[1718948817636,0.876,3516.5,3515.8,3.05681957]
[1718948817837,0.876,3516.5,3515.8,0.05681957]
[1718948818348,0.07249349,3516.4,3515.8,0.05681957]
[1718948819135,0.07249349,3516.4,3515.9,0.876]
[1718948819351,3.28,3517.0,3516.1,2.4057]
[1718948819550,0.07249349,3516.3,3516.1,2.4057]
[1718948819762,3.28,3517.0,3516.1,2.4057]
[1718948819959,0.07252768,3516.2,3516.1,2.4057]
[1718948820262,0.4926397,3516.9,3516.1,2.4057]
[1718948820477,0.07252768,3516.2,3516.1,2.4057]
[1718948820643,0.67726397,3516.8,3516.1,2.4057]
[1718948820842,0.07252768,3516.2,3516.1,2.4057]
[1718948821083,0.49263577,3516.9,3516.1,2.4057]
[1718948821569,0.07252768,3516.8,3516.1,2.4057]
[1718948823570,0.56516345,3516.8,3516.1,2.4057]
[1718948823752,0.07252768,3516.8,3516.1,2.4057]
[1718948824065,0.56517339,3516.8,3516.1,2.4057]
[1718948824236,0.07252768,3516.8,3516.4,0.876]
[1718948824440,0.07252768,3516.8,3516.5,2.49754384]
[1718948824652,3.3742,3517.5,3516.5,2.49754384]
[1718948824653,0.49264571,3517.4,3516.5,2.49754384]
[1718948824870,0.45925025,3517.3,3516.5,5.49754384]
[1718948825072,0.56521139,3517.3,3516.5,5.49754384]
[1718948825276,0.07256568,3517.3,3516.5,5.49754384]
[1718948825875,0.56521139,3517.3,3516.5,5.49754384]
[1718948826039,0.07256568,3517.3,3516.5,5.49754384]
[1718948826239,0.56521139,3517.3,3516.5,5.49754384]
[1718948826440,0.07256568,3517.3,3516.5,6.44275429]
[1718948827368,0.49257159,3517.4,3516.5,6.44275429]
[1718948827554,0.07256568,3517.2,3516.5,6.44275429]
[1718948827757,0.55,3517.3,3516.5,6.44275429]
[1718948828077,1.426,3517.3,3516.5,6.38591045]
[1718948828266,2.50536568,3517.2,3516.5,3.0]
[1718948828582,1.426,3517.1,3516.4,3.0]
[1718948829398,0.07256568,3517.0,3516.4,3.0]
[1718948835383,0.07256568,3517.0,3516.4,5.0075]
[1718948836868,0.49254879,3517.3,3516.4,5.0075]
[1718948837069,0.07267582,3517.2,3516.4,5.0075]
[1718948838062,2.06865981,3517.1,3516.4,5.0075]
[1718948838275,0.49254879,3517.0,3516.4,5.0075]
[1718948838587,2.14133563,3516.9,3516.5,0.44188045]
[1718948838901,2.5612086,3516.8,3516.6,0.876]
[1718948839107,2.5612086,3516.7,3516.6,0.876]
[1718948839549,2.56119976,3516.7,3516.6,0.876]
[1718948839749,2.63398188,3516.7,3516.6,0.876]
[1718948840103,2.63398199,3516.7,3516.6,2.0075]
[1718948840680,2.63401619,3516.7,3516.6,2.0075]
[1718948841246,2.63400164,3516.7,3516.6,2.0075]
[1718948842550,0.07278212,3516.7,3516.6,2.0075]
[1718948842963,2.06864654,3516.7,3516.6,2.0075]
[1718948843198,0.56531701,3516.7,3516.6,2.0075]
[1718948843354,0.07278212,3516.7,3516.6,2.0075]
[1718948843908,2.14142866,3516.7,3516.6,4.3674]
[1718948844215,0.49253489,3516.7,3516.6,7.3674]
[1718948844359,0.49246263,3518.0,3516.7,2.3599]
[1718948844553,2.06832472,3517.9,3517.4,0.876]
[1718948844785,0.49246263,3517.8,3517.4,0.876]
[1718948844958,2.06832472,3517.7,3517.4,3.876]
[1718948845279,0.49246263,3517.6,3517.4,3.876]
[1718948845495,2.06832472,3517.5,3517.4,3.876]
[1718948845660,2.4655,3518.1,3517.4,4.49959]
[1718948845995,2.56049881,3518.0,3517.4,3.876]
[1718948846294,2.4655,3518.1,3517.4,3.876]
[1718948846295,2.56049881,3517.9,3517.4,3.876]
[1718948846496,2.56049881,3517.8,3517.4,3.876]
[1718948846712,2.56049881,3517.7,3517.4,3.876]
[1718948846915,2.56049881,3517.6,3517.4,3.876]
[1718948847142,2.56049881,3517.5,3517.4,3.876]
[1718948847283,0.49240363,3517.5,3517.4,3.876]
[1718948847629,0.49240363,3518.0,3517.4,4.49959]
[1718948847788,2.3256,3518.4,3517.7,0.876]
[1718948847789,2.06802848,3517.9,3517.7,0.876]
[1718948847999,2.56043211,3517.8,3517.7,0.876]
[1718948848201,2.56043211,3517.8,3517.5,0.876]
[1718948848385,0.49240363,3517.7,3517.5,0.876]
[1718948848580,0.81256363,3518.3,3517.5,0.876]
[1718948848900,2.06804596,3518.2,3517.7,0.876]
[1718948849102,0.32016,3518.3,3517.7,0.876]
[1718948849306,2.0680426,3518.2,3517.7,0.876]
[1718948849521,0.4923911,3518.1,3517.7,0.876]
[1718948849674,2.0680426,3518.0,3517.7,0.876]
[1718948849878,0.49238766,3517.9,3517.7,0.876]
[1718948850380,0.49238766,3518.3,3517.8,2.415]
[1718948850585,2.06793495,3518.2,3517.9,0.876]
[1718948850885,2.56032261,3518.1,3517.9,0.876]
[1718948851091,0.49238766,3518.0,3517.9,3.876]
[1718948851295,0.49238766,3518.6,3517.9,3.876]
[1718948851503,2.06791239,3518.5,3517.9,3.876]
[1718948851679,2.56027342,3518.4,3517.9,3.876]
[1718948851881,2.56027342,3518.3,3517.9,3.876]
[1718948852079,2.56027342,3518.2,3517.9,3.876]
[1718948852382,0.56607248,3518.1,3517.9,3.876]
[1718948852582,0.07371221,3518.1,3517.9,3.876]
[1718948852982,0.49236027,3518.6,3517.9,3.876]
[1718948853209,0.07371221,3518.0,3517.9,3.876]
[1718948853406,0.49236027,3518.4,3517.9,3.876]
[1718948853602,0.07371221,3518.0,3517.9,3.876]
[1718948853816,0.49236027,3518.2,3517.9,3.876]
[1718948854004,0.07371221,3518.0,3517.9,3.876]
[1718948854209,0.49236027,3518.6,3517.9,3.876]
[1718948854426,0.07371221,3518.0,3517.9,3.0]
[1718948854726,0.07371221,3518.0,3517.9,0.876]
[1718948855037,2.413,3518.7,3517.9,3.876]
[1718948855038,0.49235765,3518.6,3517.9,3.876]
[1718948855234,0.07371221,3518.0,3517.9,3.876]
[1718948855722,0.49235765,3518.6,3517.9,3.876]
[1718948856026,0.07371221,3518.0,3517.9,3.876]
[1718948856215,0.49235765,3518.4,3517.9,4.5051]
[1718948856420,0.07371221,3518.0,3517.9,3.0]
[1718948856728,0.07371221,3518.0,3517.8,3.291]
[1718948856943,0.49235765,3518.6,3517.9,3.05684615]
[1718948857234,2.06797757,3518.5,3518.0,0.876]
[1718948857410,0.49235765,3518.4,3518.0,0.876]
[1718948857727,2.06797757,3518.3,3518.0,0.876]
[1718948857924,2.7419,3518.7,3518.0,0.876]
[1718948858227,0.49235692,3518.2,3518.0,1.56186317]
[1718948858431,0.49235692,3518.2,3518.0,0.93276317]
[1718948859416,0.49235692,3518.2,3518.0,0.876]
[1718948861197,0.15935692,3518.2,3518.0,0.876]
[1718948861841,0.318689,3518.5,3518.0,0.876]
[1718948864153,2.56022533,3518.6,3518.0,0.876]
[1718948866317,2.56022533,3518.6,3518.0,1.5051]
[1718948867341,0.07393608,3518.5,3518.0,1.5051]
[1718948868619,2.4346,3518.9,3518.0,1.5051]
[1718948868820,0.07393608,3518.4,3518.0,0.876]
[1718948869026,0.55,3518.8,3518.0,0.876]
[1718948869226,0.07393608,3518.3,3518.0,0.876]
[1718948869433,0.55,3518.8,3518.1,2.2597]
[1718948869762,0.07393608,3518.7,3518.1,5.2597]
[1718948869959,0.07393608,3518.7,3518.1,6.3912]
[1718948870473,0.55,3518.8,3518.1,6.3912]
[1718948870834,0.07393608,3518.7,3518.1,6.3912]
[1718948871361,0.55,3518.8,3518.1,6.3912]
[1718948871566,0.07393608,3518.6,3518.1,6.3912]
[1718948871766,0.55,3518.8,3518.2,0.44188045]
[1718948871767,1.04232437,3518.8,3518.2,0.44188045]
[1718948871929,1.04232437,3518.8,3518.2,3.0]
[1718948872133,0.07393608,3518.7,3518.1,5.2597]
[1718948875663,0.07393608,3518.7,3518.1,2.2597]
[1718948875857,0.07393608,3518.7,3518.1,5.2597]
[1718948876053,0.07393608,3518.7,3518.1,3.0]
[1718948876268,1.04232664,3518.8,3518.0,3.876]
[1718948876468,0.07393988,3518.6,3518.0,3.876]
[1718948876772,1.04234751,3518.8,3518.0,5.00815]
[1718948876981,0.07393608,3518.5,3518.0,5.00815]
[1718948877143,1.04234871,3518.8,3518.0,5.00815]
[1718948877565,0.0739285,3518.7,3518.0,5.00815]
[1718948878088,1.04235212,3518.8,3518.0,5.00815]
[1718948878297,1.04235212,3518.8,3518.0,3.0]
[1718948878447,2.93728062,3518.7,3517.9,3.0]
[1718948878648,0.49235212,3518.6,3517.9,3.0]
[1718948878958,0.62391713,3518.5,3517.9,3.0]
[1718948879351,1.11630016,3518.5,3517.9,3.0]
[1718948879545,0.62391713,3518.5,3517.9,3.0]
[1718948879962,1.11629769,3518.5,3517.9,3.0]
[1718948880164,0.62391713,3518.5,3517.9,3.0]
[1718948880363,1.11629726,3518.5,3517.9,3.0]
[1718948880665,0.62391713,3518.5,3517.9,3.0]
[1718948880859,1.11629726,3518.5,3517.9,3.0]
[1718948881075,0.62391713,3518.5,3517.9,3.0]
[1718948881287,1.11629726,3518.5,3517.9,3.0]
[1718948881459,0.62391713,3518.5,3517.9,3.0]
[1718948881643,1.11629726,3518.5,3517.9,3.0]
[1718948881847,0.62391713,3518.5,3517.9,3.0]
[1718948882499,1.11630476,3518.5,3517.9,3.0]
[1718948882779,0.62391713,3518.5,3517.9,3.0]
[1718948882946,1.11630476,3518.5,3517.9,3.0]
[1718948883142,0.62391713,3518.5,3517.9,3.0]
[1718948883387,1.11630476,3518.5,3517.9,3.876]
[1718948883608,0.62391713,3518.5,3517.9,4.78164]
[1718948883755,1.11630476,3518.5,3517.9,4.78164]
[1718948883950,0.62391713,3518.5,3517.9,4.78164]
[1718948884146,0.07391713,3518.5,3517.9,4.78164]
[1718948884386,0.07391713,3518.5,3518.0,0.66774045]
[1718948885511,0.49232661,3518.6,3518.0,0.66774045]
[1718948885711,0.0738602,3518.5,3518.0,0.66774045]
[1718948886274,0.0738602,3518.5,3518.0,2.96564045]
[1718948886471,0.0738602,3518.5,3518.1,3.0]
[1718948887382,0.0738602,3518.5,3518.1,3.90564]
[1718948888951,0.0738602,3518.5,3518.2,3.0]
[1718948889108,0.0738602,3518.5,3518.1,0.90564]
[1718948893375,0.0738602,3518.5,3517.9,3.876]
[1718948896372,2.3277,3518.4,3517.9,3.0]
[1718948896580,2.3277,3518.4,3517.6,3.876]
[1718948896581,0.49234665,3518.3,3517.6,3.876]
[1718948896763,0.49234665,3518.3,3517.6,5.01288]
[1718948896764,0.56631687,3518.3,3517.6,5.01288]
[1718948897752,0.07397022,3518.3,3517.6,3.0]
[1718948898053,2.3277,3518.1,3517.4,3.0]
[1718948898273,0.49240324,3518.0,3517.4,3.0]
[1718948898464,0.56623686,3518.0,3517.4,3.0]
[1718948899365,2.9087,3517.9,3517.4,3.0]
[1718948899563,0.49240324,3517.8,3517.4,3.0]
[1718948899800,0.56611923,3517.8,3517.1,3.876]
[1718948900103,0.49240324,3517.8,3517.1,3.876]
[1718948900797,0.49248018,3517.8,3517.1,3.876]
[1718948901293,0.49248018,3517.8,3517.1,3.0]
[1718948901802,0.49248018,3517.8,3517.1,3.876]
[1718948903176,0.49248018,3517.8,3517.1,3.0]
[1718948903328,0.49248018,3517.8,3517.1,3.876]
[1718948903686,2.9087,3517.9,3517.1,3.876]
[1718948903921,0.4924753,3517.8,3517.1,3.876]
[1718948904210,2.9087,3517.9,3517.1,3.876]
[1718948904406,0.4924811,3517.8,3517.1,3.876]
[1718948904912,0.4924811,3517.8,3517.1,3.0]
[1718948905100,0.4924811,3517.8,3517.2,0.876]
[1718948906889,0.49247761,3517.8,3517.2,0.876]
[1718948907295,0.15947761,3517.8,3517.2,0.876]
[1718948908103,2.9087,3517.9,3517.2,0.876]
[1718948911108,3.28717,3517.9,3517.1,3.0]
[1718948912212,2.9087,3517.9,3517.1,3.0]
[1718948919543,2.4757,3517.8,3517.1,3.0]
[1718948919741,0.876,3517.6,3517.1,3.0]
[1718948919953,3.0257,3517.5,3517.2,3.0]
[1718948920108,3.09899162,3517.5,3516.7,3.0]
[1718948920314,0.94749916,3517.5,3516.7,3.0]
[1718948920510,3.1413,3517.4,3516.7,3.0]
[1718948920714,0.55,3517.3,3516.6,5.1804]
[1718948921017,0.07318912,3517.2,3516.4,0.876]
[1718948921454,0.55,3517.3,3516.4,0.876]
[1718948921741,3.2464,3517.2,3516.3,5.1804]
[1718948921943,0.62307902,3517.1,3516.4,3.0]
[1718948922616,0.62307902,3517.1,3516.4,3.876]
[1718948922963,0.62307902,3517.1,3516.4,4.78164]
[1718948925533,0.62307902,3517.1,3516.5,2.2704]
[1718948925722,0.07307902,3517.1,3516.6,0.876]
[1718948925927,0.07307902,3517.1,3516.6,3.876]
[1718948926240,0.07307902,3517.1,3516.7,0.66774045]
[1718948930127,0.07064306,3517.0,3516.7,0.66774045]
[1718948930439,2.11047902,3517.2,3516.7,0.66774045]
[1718948930645,0.07064306,3516.9,3516.7,0.66774045]
[1718948930948,0.07064306,3516.8,3516.7,0.66774045]
[1718948931250,2.11047902,3517.2,3516.7,0.66774045]